Cogmind - Beta 14 @@@ ROGUE MODE // 2024.08.30 @ 16:31:23 Player: celerysam Result: Destroyed by H-55 Commando with Gauss Rifle Performance ------------- Evolutions (2) 1000 Regions Visited (5) 1000 Robots Destroyed (13) 65 Value Destroyed (561) 561 Prototype IDs (2) 40 Alien Tech Used (0) 0 Bonus (200) 200 TOTAL SCORE: 2866 Bonus ------- Entered Garrisons 200 Cogmind --------- Core Integrity 0/550 Matter 216/300 Energy 49/100 System Corruption 4% Temperature Cool (0) Movement Core (150) Ox2 Location -8/Garrison Parts ------- > --- POWER (2) -------- (None) > --- PROPULSION (4) --- (None) > --- UTILITY (3) ------ (None) > --- WEAPON (2) ------- Assault Cannon Spear > --- INVENTORY (5) ---- Flight Unit Cooling System Hacking Suite Relay Coupler [Specialist] (26) Peak State ------------ > --- POWER ------------ (None) > --- PROPULSION ------- Armored Huge Wheel Combat Airjet Combat Airjet > --- UTILITY ---------- Small Storage Unit Weight Redist. System Seismic Detector > --- WEAPON ----------- Mini Grenade Launcher Spear > --- INVENTORY -------- Flight Unit Cooling System Hacking Suite Field Laser Assault Cannon [Rating: 29] Favorites ----------- Power Light Ion Engine Engine Light Ion Engine Propulsion Compact Wheel Wheel Compact Wheel Hover Unit Combat Airjet Flight Unit Flight Unit Utility Small Storage Unit Device Seismic Detector Storage Small Storage Unit Weapon Improved Light Cannon Energy Gun Small Laser Ballistic Gun Assault Rifle Ballistic Cannon Improved Light Cannon Launcher Mini Grenade Launcher Special Weapon Mining Laser Piercing Weapon Spear Build | -11 -10 -9 -9 -8 -8 ------- Run | Yrd Mat Mat Min Mat Gar Slots Evolved 4 | . . 2 . 2 . Power 1 | . . . . 1 . Propulsion 2 | . . 2 . . . Utility 1 | . . . . 1 . Weapon . | . . . . . . Parts Attached 36 | 6 1 4 8 12 5 Power 5 | 1 1 . 2 1 . Engine 5 | 1 1 . 2 1 . Core . | . . . . . . Reactor . | . . . . . . Propulsion 12 | 2 . 2 1 4 3 Treads . | . . . . . . Leg . | . . . . . . Wheel 6 | 2 . 2 1 . 1 Hover 2 | . . . . . 2 Flight 4 | . . . . 4 . Utility 6 | 1 . . 2 3 . Device 5 | . . . 2 3 . Storage 1 | 1 . . . . . Processor . | . . . . . . Hackware . | . . . . . . Protection . | . . . . . . Artifact . | . . . . . . Weapon 13 | 2 . 2 3 4 2 Energy Gun 4 | 1 . . 1 1 1 Energy Cannon . | . . . . . . Ballistic Gun 2 | 1 . . . 1 . Ballistic Cannon 3 | . . 1 1 . 1 Launcher 2 | . . . . 2 . Special Weapon 1 | . . 1 . . . Impact Weapon . | . . . . . . Slashing Weapon . | . . . . . . Piercing Weapon 1 | . . . 1 . . Special Melee Weapon . | . . . . . . Unidentified Prototypes 2 | . . . . 2 . Parts Lost 18 | . 2 1 1 1 13 Power 3 | . 1 . . . 2 Propulsion 6 | . . . . . 6 Utility 4 | . . . . 1 3 Weapon 5 | . 1 1 1 . 2 Highest Loss Streak 6 | . 1 1 1 1 6 To Critical Strikes . | . . . . . . Average Slot Usage (%) 83 | . 84 77 88 90 61 Engine 10 | . 13 11 11 16 3 Wheel 31 | . 28 37 43 16 5 Hover 1 | . . . . . 10 Flight 3 | . . . . 14 6 Device 5 | . . . 1 16 11 Storage 10 | . 14 11 11 9 8 Energy Gun 2 | . 14 . . 4 . Ballistic Gun 2 | . 14 8 . . . Ballistic Cannon 6 | . . 9 10 1 . Launcher 1 | . . . . 3 5 Special Weapon 4 | . . . 10 . . Piercing Weapon 2 | . . . . 9 9 Peak Build Rating 29 | 6 6 10 23 27 29 Average Rating 13 | 3 5 8 10 24 22 On Entrance 11 | . 6 5 10 23 22 Naked Turns . | . . . . . . Heaviest Build 25 | 11 11 14 20 25 21 Greatest Support 54 | 26 26 54 54 50 24 Greatest Overweight (x) 3 | 1 . . . 1 3 Average Overweight (x) . | . . . . . . Largest Inventory Capacity 8 | 8 8 8 8 8 8 Average Capacity 7 | 7 8 8 8 8 7 Most Carried 8 | 8 8 8 8 8 8 Average Carried 7 | 5 6 8 7 7 6 Final Capacity 8 | 8 8 8 8 8 5 Final Carried 8 | 6 8 8 8 8 4 Class Distribution -------------------- 90% | Mutant 7% | Scavenger-Sprinter Dominant Class ---------------- Mutant | -10/Materials Mutant | -9/Materials Mutant | -9/Mines Mutant | -8/Materials Mutant | -8/Garrison Resources | -11 -10 -9 -9 -8 -8 ----------- Run | Yrd Mat Mat Min Mat Gar Matter Collected 524 | 241 60 . 97 106 20 Remotely . | . . . . . . Salvage Created 442 | . 97 . . 154 191 Parts 25 | . 7 . . 6 12 Haulers Intercepted . | . . . . . . Recyclers Shooed . | . . . . . . Parts Field Recycled . | . . . . . . Retrieved Matter . | . . . . . . Parts Self-Destructed . | . . . . . . Prevented . | . . . . . . Kills | -11 -10 -9 -9 -8 -8 ------- Run | Yrd Mat Mat Min Mat Gar Combat Hostiles Destroyed 13 | . 4 . . 3 6 Melee 4 | . . . . 3 1 Guns 6 | . 4 . . . 2 Cannons 1 | . . . . . 1 AOE 2 | . . . . . 2 Classes Destroyed 5 | . 2 . . 1 2 Swarmer 2 | . 2 . . . . Grunt 5 | . 2 . . 2 1 Duelist 1 | . . . . . 1 Sentry 1 | . . . . 1 . Programmer 4 | . . . . . 4 Best Kill Streak 3 | . 2 . . 2 3 Combat Bots Only 3 | . 2 . . 2 3 Max Kills in Single Turn 2 | . 1 . . 1 2 Gunslinging . | . . . . . . Exploded 2 | . . . . . 2 Melee 1 | . . . . 1 1 Uniques/NPCs Destroyed . | . . . . . . Combat | -11 -10 -9 -9 -8 -8 -------- Run | Yrd Mat Mat Min Mat Gar Hostile Shots Fired 192 | . 37 13 . 17 125 Missed 55 | . 8 8 . 4 35 Damage Taken 2039 | . 291 68 40 226 1414 Core 601 | . 42 . . 58 501 Absorbed by Shields 124 | . . . . . 124 Core Remaining (%) 94 | 100 83 . 100 . . Volleys Fired 41 | . 18 4 . 3 16 Largest 2 | . 2 2 . 1 1 Hottest 63 | . 60 59 . 56 63 Shots Fired 61 | . 36 6 . 3 16 Gun 48 | . 36 2 . 2 8 Cannon 9 | . . 4 . . 5 Launcher 4 | . . . . 1 3 Special . | . . . . . . Kinetic 29 | . 18 6 . . 5 Thermal 28 | . 18 . . 2 8 Explosive 4 | . . . . 1 3 Electromagnetic . | . . . . . . Robot Hit Streak 12 | . 12 7 . 4 10 Robot Miss Streak 3 | . 3 1 . 1 2 Penetration Max . | . . . . . . Secondary Targets . | . . . . . . Shots Hit Robots 62 | . 27 5 . 11 19 Core Hits 24 | . 6 1 . 4 13 Critical Kills . | . . . . . . Critical Parts Destroyed . | . . . . . . Critical Strikes 1 | . . . . 1 . Impale 1 | . . . . 1 . Melee Attacks 25 | . . . . 10 15 Impact . | . . . . . . Slashing . | . . . . . . Piercing 25 | . . . . 10 15 Sneak Attacks . | . . . . . . Combat Hostiles . | . . . . . . Follow-up Attacks . | . . . . . . Damage Inflicted 1390 | . 327 94 . 308 661 Guns 522 | . 327 26 . 32 137 Cannons 154 | . . 68 . . 86 Explosions 322 | . . . . 30 292 Melee 392 | . . . . 246 146 Ramming . | . . . . . . Kinetic 364 | . 184 94 . . 86 Thermal 312 | . 143 . . 32 137 Explosive 322 | . . . . 30 292 Electromagnetic . | . . . . . . Impact . | . . . . . . Slashing . | . . . . . . Piercing 392 | . . . . 246 146 Highest Corruption 4 | . . . . . 4 Average Corruption 2 | . . . . . 2 Corruption Purged . | . . . . . . Corruption Blocked . | . . . . . . Effects 5 | . . . . . 5 Message Errors 2 | . . . . . 2 Energy Discharges 2 | . . . . . 2 Data Loss (minor) 1 | . . . . . 1 Overload Shots . | . . . . . . Overflow Damage 66 | . . . . 34 32 Projectiles . | . . . . . . Explosions 36 | . . . . 4 32 Melee 30 | . . . . 30 . Knockbacks 2 | . . . . . 2 Impact . | . . . . . . Kinetic 2 | . . . . . 2 Secondary . | . . . . . . Self-Inflicted Damage 135 | . . . . 26 109 Shots 4 | . . . . 1 3 Rammed 1 | . 1 . . . . Targets Rammed 1 | . 1 . . . . Kicked . | . . . . . . Crushed . | . . . . . . Highest Temperature 73 | . 73 5 . 14 9 Average Temperature 29 | . 44 3 . 5 4 Received Heat Transfer 414 | . 102 27 . 99 186 Siege Activations . | . . . . . . Robots Corrupted . | . . . . . . Combat Hostiles . | . . . . . . Parts Fried . | . . . . . . Impact Corruptions . | . . . . . . Robots Melted . | . . . . . . Combat Hostiles . | . . . . . . Parts Melted 3 | . 2 . . 1 . Heat Transferred 695 | . 325 . . 74 296 Parts Sabotaged . | . . . . . . Parts Stolen . | . . . . . . Parts Stripped . | . . . . . . Power Chain Reactions . | . . . . . . Alert | -11 -10 -9 -9 -8 -8 ------- Run | Yrd Mat Mat Min Mat Gar Peak Influence 229 | . 120 81 31 142 229 Initial 92 | . . 46 31 . 92 Average 45 | . 42 53 16 41 157 Maximum Alert Level 1 | . . . . . 1 Low Security (%) 99 | 100 100 100 100 100 99 Level 1 . | . . . . . . Level 2 . | . . . . . . Level 3 . | . . . . . . Level 4 . | . . . . . . Level 5 . | . . . . . . High Security . | . . . . . . Max Security . | . . . . . . Squads Dispatched 1 | . 1 . . . . Investigation . | . . . . . . Extermination . | . . . . . . Reinforcement 1 | . 1 . . . . Assault . | . . . . . . Garrison . | . . . . . . Intercept . | . . . . . . Searches Triggered . | . . . . . . Construction Impeded . | . . . . . . Haulers Reinforced . | . . . . . . Active Scanning Responses . | . . . . . . Cargo Convoy Interrupts . | . . . . . . Stealth | -11 -10 -9 -9 -8 -8 --------- Run | Yrd Mat Mat Min Mat Gar Distress Signals 4 | . 2 1 . 1 . Communications Jammed . | . . . . . . Distress Signals . | . . . . . . Times Spotted 35 | . 8 5 . 12 10 Peak Tracking Total 12 | . 4 6 . 12 7 Tactical Retreats 1 | . . . . . 1 Traps | -11 -10 -9 -9 -8 -8 ------- Run | Yrd Mat Mat Min Mat Gar Traps Triggered 3 | . . . 1 . 2 Indirectly . | . . . . . . Trap Hack Attempts . | . . . . . . Triggered . | . . . . . . Disarmed . | . . . . . . Reprogrammed . | . . . . . . Reused . | . . . . . . Traps Extracted . | . . . . . . Installed . | . . . . . . Triggered . | . . . . . . Machines | -11 -10 -9 -9 -8 -8 ---------- Run | Yrd Mat Mat Min Mat Gar Machines Disabled . | . . . . . . Max in Single Turn . | . . . . . . Machines Repaired . | . . . . . . Machines Dismantled . | . . . . . . Machines Sabotaged . | . . . . . . Overloaded Fab Kills . | . . . . . . Hacking | -11 -10 -9 -9 -8 -8 --------- Run | Yrd Mat Mat Min Mat Gar Machines Accessed 4 | . . . 1 2 1 Terminals 2 | . . . . 1 1 Fabricators . | . . . . . . Repair Stations . | . . . . . . Recycling Units . | . . . . . . Scanalyzers . | . . . . . . Garrison Access 1 | . . . . 1 . Total Hacks 6 | . . . 1 2 3 Successful 4 | . . . 1 2 1 Failed 2 | . . . . . 2 Catastrophic . | . . . . . . Database Lockouts . | . . . . . . Manual . | . . . . . . Terminals 4 | . . . . 1 3 Fabricators . | . . . . . . Repair Stations . | . . . . . . Recycling Units . | . . . . . . Scanalyzers . | . . . . . . Garrison Access 1 | . . . . 1 . Terminal Hacks 3 | . . . 1 1 1 Open Door 1 | . . . 1 . . Branch Access Points 1 | . . . . 1 . Emergency Access Points 1 | . . . . . 1 Fabricator Hacks . | . . . . . . Repair Station Hacks . | . . . . . . Recycling Unit Hacks . | . . . . . . Scanalyzer . | . . . . . . Garrison Access Hacks 1 | . . . . 1 . Unlock Access 1 | . . . . 1 . Unauthorized Hacks . | . . . . . . Terminals . | . . . . . . Fabricators . | . . . . . . Repair Stations . | . . . . . . Recycling Units . | . . . . . . Scanalyzers . | . . . . . . Garrison Access . | . . . . . . Data Cores Recovered . | . . . . . . Used . | . . . . . . Hacking Detections 2 | . . . . 1 1 Full Trace Events . | . . . . . . Feedback Events . | . . . . . . Feedback Blocked . | . . . . . . Robot Schematics Acquired . | . . . . . . Robots Built . | . . . . . . Authchips . | . . . . . . Time . | . . . . . . Total Robot Build Rating . | . . . . . . Part Schematics Acquired . | . . . . . . Parts Built . | . . . . . . Authchips . | . . . . . . Time . | . . . . . . Total Part Build Rating . | . . . . . . Parts Repaired . | . . . . . . Time . | . . . . . . Parts Recycled . | . . . . . . Recycled Matter . | . . . . . . Retrieved Matter . | . . . . . . Retrieved Components . | . . . . . . Parts Scanalyzed . | . . . . . . Part Schematics Acquired . | . . . . . . Parts Damaged . | . . . . . . Bothacking | -11 -10 -9 -9 -8 -8 ------------ Run | Yrd Mat Mat Min Mat Gar Used RIF Installer . | . . . . . . Robots Hacked . | . . . . . . Non-combat . | . . . . . . Combat . | . . . . . . Robot Hacks Applied . | . . . . . . Relay Couplers Released 4 | . . . . . 4 Programmers 4 | . . . . . 4 Fabnet Peak Effective % . | . . . . . . Robots Rewired . | . . . . . . Allies Hacked . | . . . . . . Hacks Repelled . | . . . . . . Allies | -11 -10 -9 -9 -8 -8 -------- Run | Yrd Mat Mat Min Mat Gar Total Allies . | . . . . . . Largest Group . | . . . . . . Highest-Rated Group . | . . . . . . Highest-Rated Ally . | . . . . . . Total Orders . | . . . . . . Ally Attacks . | . . . . . . Total Damage . | . . . . . . Kills . | . . . . . . Allies Corrupted . | . . . . . . Allies Melted . | . . . . . . Intel | -11 -10 -9 -9 -8 -8 ------- Run | Yrd Mat Mat Min Mat Gar Robot Analysis Total . | . . . . . . Derelict Logs Recovered . | . . . . . . Drone Launches . | . . . . . . Drone Recoveries . | . . . . . . Exploration | -11 -10 -9 -9 -8 -8 ------------- Run | Yrd Mat Mat Min Mat Gar Turns Passed 1614 | 58 178 121 758 269 230 Spaces Moved 1257 | 49 129 112 474 271 222 Core 16 | 15 . . . . 1 Treads . | . . . . . . Legs . | . . . . . . Wheels 908 | 34 129 112 474 159 . Hover 132 | . . . . . 132 Flight 201 | . . . . 112 89 Fastest Speed 31 | 50 90 90 90 31 31 Average Speed 82 | 82 90 91 91 72 65 Slowest Speed 200 | 100 90 93 92 111 200 Overloaded Moves . | . . . . . . Propulsion Burnouts . | . . . . . . Robots Hopped . | . . . . . . Cave-ins Triggered . | . . . . . . Exploration Rate (%) 31 | 3 32 16 75 25 38 Regions Visited 5 Branch Regions 1 Pre-discovered Areas . | . . . . . . Known Exits Taken 1 | . . . . 1 . Unknown Exits Taken 4 | 1 1 1 1 . . Scrap Searched 2 | . . . 2 . . Spaces Dug . | . . . . . . Terrain Destroyed 26 | . . . . 7 19 Melee . | . . . . . . Projectile . | . . . . . . AOE 26 | . . . . 7 19 Terrain Rammed . | . . . . . . Walls Destroyed . | . . . . . . Machines Disabled . | . . . . . . Actions | -11 -10 -9 -9 -8 -8 --------- Run | Yrd Mat Mat Min Mat Gar Total 1732 | 66 155 122 797 322 270 Wait 320 | . 2 3 301 14 . Move 1253 | 48 128 111 473 271 222 Hop . | . . . . . . Pick Up 28 | 12 4 . 6 5 1 Fast Attach 15 | . . 4 6 5 . Attach 15 | 6 1 . . 3 5 Detach 1 | . . . . . 1 Swap 6 | . . . 2 4 . Drop 17 | . 1 . 9 7 . Fire 41 | . 18 4 . 3 16 Melee 25 | . . . . 10 15 Ram 1 | . 1 . . . . Kick . | . . . . . . Crush . | . . . . . . Escape Stasis 10 | . . . . . 10 Rewire . | . . . . . . Trap . | . . . . . . Miscellaneous . | . . . . . . Route ------- -11/Scrapyard -10/Materials -9/Materials -9/Mines -8/Materials -8/Garrison History --------- Turn | Location | Event 15 | -11/Scrapyard | Discovered new exit (range 16) 59 | -11/Scrapyard | Entered Materials 229 | -10/Materials | Discovered new exit (range 8) 237 | -10/Materials | Entered another Materials area 237 | -9/Materials | Evolved 2 slots: Propulsion x2 314 | -9/Materials | Build established: Mutant 344 | -9/Materials | Discovered new exit (range 6) 358 | -9/Materials | Entered Mines 389 | -9/Mines | YI-UF0 nonchalantly dropped a Grenade Launcher on the ground 686 | -9/Mines | Assembled infested the area 1076 | -9/Mines | Discovered new exit (range 12) 1087 | -9/Mines | Met a Derelict who couldn't figure out how to use a Trap Extractor 1116 | -9/Mines | Entered Materials 1116 | -8/Materials | Evolved 2 slots: Power x1, Utility x1 1385 | -8/Materials | Identified exit to Garrison 1385 | -8/Materials | Entered Garrison 1460 | -8/Garrison | Lost 5 parts (2p3n) 1509 | -8/Garrison | Triggered checkpoint 1522 | -8/Garrison | Triggered checkpoint 1553 | -8/Garrison | Core integrity fell below 50% 1589 | -8/Garrison | Core integrity fell below 20% 1615 | -8/Garrison | Destroyed by H-55 Commando with Gauss Rifle Last Messages --------------- 01590_ Triggered Stasis Trap. 01590_ A bubble of rippling energy engulfs the area. 01590_ Field strength at 94. 01594_ Slug penetrates Wall. 01595_ Sml. Storage Unit destroyed. 01596_ L-31 Rogue destroyed. 01597_ System corrupted: Energy discharge (-22). 01602_ G-47 Trooper destroyed. 01603_ Slug penetrates Wall. 01603_ Field Laser destroyed. 01604_ Field strength at 28. 01605_ Wall collapses. 01606_ Penetrated by Slug. 01608_ P-60 Hacker knocked back. 01609_ Penetrated by Slug. 01610_ Destroyed Shock Rifle. 01610_ P-60 Hacker knocked back. 01612_ Stasis field depleted. 01614_ P-60 Hacker destroyed. 01615_ Penetrated by Slug. Map ----- +----------------------------------------------------+ | | | | | | | | | | | | | ??????????????????????????????????????????? | | ??????????????????????????????????????????? | | ??????????????????????????????????????????? | | ??????????????????????????????????????????? | | ??????????????????????????????????????????? | | ??????????????????????????????????????????? | | ??????????????????????????????????????????? | | ??????????????????????????????????????????? | | ??????????????????????????????????????????? | | ??????????????????????????????????????????? | | ??????????????????????????????????????????? | | ??????????????????????????????????????????? | | ?????????????+????????????????????????????? | | ??????????????????????????????????????????? | | ???????????????????????+??????????????????? | | ??????????????????????????????????????????? | | ????????????????######""??????????????????? | | ????????????????# ???????????????????? | | ????????????????#=! ?????????????????????? | | ????????????????#!@#?????????????++???????? | | ????????????????#*%#??????????????????????? | | ?????????# ####%!!#############++#??????? | | ???? !=[h #??????? | | ?????????# !%! #??????? | | ?????????# #??????? | | ?????????####################### #??????? | | ???????????????????????????????# #??????? | | ???????????????????????????????# #??????? | | ???????????????????????????????# #??????? | | ???????????????????????????????# #??????? | | ???????????????????????????????# #??????? | | ???????????????????????????????# #??????? | | ???????????????????????????????# #??????? | | ???????????????????????????????# ######## | | ???????????????????????????????# + | | ???????????????????????????????# " | | ???????????????????????????????# ### #### | | ???????????????????????????????# #?# #??? | | ???????????????????????????????# #?# #??? | | ???????????????????????????????# #?# #??? | | ???????????????????????????????# #?# #??? | | ???????????????????????????????# #?# #??? | | ???????????????????????????????# ###+#### | | ???????????????????????????????# | +----------------------------------------------------+ Best States ------------- Heat Dissipation 53 Energy Generation 17 Energy Capacity 415 Matter Stores 300 Matter Capacity 300 Sight Range 16 Terrain Scan Density 10 Additional Mass Support 6 Evasion (%) 63 Item Schematics ----------------- None Robot Schematics ------------------ None Fabricated ------------ Nothing Alien Tech Used ----------------- None Achievements -------------- None Challenges ------------ None Game ------ Seed ChainBombardmentBoomstick Manual? 0 Play Time 00:22:46 Cumulative 136.8 hours Start 2024.08.30 @ 16:08:44 End 2024.08.30 @ 16:31:23 Sessions 1 Manual Loads 0 Difficulty Rogue Special Mode None Game No. 194 Rogue 194 Adventurer 0 Explorer 0 Win Type - Total 0 Types 0/0/0/0/0/0/0/0/0 Lore% 31 Gallery% 58 Achievement% 39 Wizard Run 0 Options --------- Layout 0 ASCII 0 Keyboard 0 Movement Mouse Keybinds 0 Fullscreen 1 Font 24/Smallcaps Map View 76x50 Zoom Use 0% Tactical HUD 1 Map Filters NONE Filters NONE Steam 1 RUN: 91e27623-6202-4b05-a404-3e45616002b2